bitfinex/quotes_BTCUSD_20240703
["timestamp","ask_amount","ask_price","bid_price","bid_amount"]
[1720029152728,1.3257592,60396.0,60395.0,0.1741988]
[1720029152932,1.4913322,60396.0,60395.0,0.1741988]
[1720029153076,1.8249852,60396.0,60395.0,0.1741988]
[1720029153277,1.4938382,60396.0,60395.0,0.1811988]
[1720029153481,1.4915322,60396.0,60395.0,0.1811988]
[1720029154024,1.4915322,60396.0,60395.0,0.1697988]
[1720029154025,1.8249852,60396.0,60395.0,0.1697988]
[1720029154168,1.4938382,60396.0,60395.0,0.1697988]
[1720029154369,1.4938382,60396.0,60395.0,0.1557988]
[1720029154605,1.4938382,60396.0,60395.0,0.1487988]
[1720029154803,1.4938382,60396.0,60395.0,0.1547988]
[1720029155058,1.5938382,60396.0,60395.0,0.1547988]
[1720029155234,1.5948382,60396.0,60395.0,0.1547988]
[1720029155656,1.5948382,60396.0,60395.0,0.1546988]
[1720029155657,1.61549366,60396.0,60395.0,0.1546988]
[1720029155857,1.61549366,60396.0,60395.0,0.1545988]
[1720029156763,1.61298766,60396.0,60395.0,0.1545988]
[1720029157000,1.28164066,60396.0,60395.0,0.20568446]
[1720029157226,1.2611852,60396.0,60395.0,0.20568446]
[1720029159167,1.26078589,60396.0,60395.0,0.20568446]
[1720029159371,1.26098589,60396.0,60395.0,0.1545988]
[1720029159574,1.26098589,60396.0,60395.0,0.20568446]
[1720029159996,1.25998589,60396.0,60395.0,0.19978446]
[1720029160198,1.25998589,60396.0,60395.0,0.22278446]
[1720029161164,1.25998589,60396.0,60395.0,0.23878446]
[1720029161727,1.25998589,60396.0,60395.0,0.1876988]
[1720029163148,1.25978589,60396.0,60395.0,0.23878446]
[1720029163813,1.25988589,60396.0,60395.0,0.23878446]
[1720029164043,1.26008589,60396.0,60395.0,0.23878446]
[1720029164408,1.26008589,60396.0,60395.0,0.1876988]
[1720029164658,1.26008589,60396.0,60395.0,0.1877988]
[1720029165622,1.26008589,60396.0,60395.0,0.23888446]
[1720029165973,1.33608589,60396.0,60395.0,0.23888446]
[1720029166375,1.33608589,60396.0,60395.0,0.1877988]
[1720029166714,1.33608589,60396.0,60395.0,0.1647988]
[1720029166715,1.33839189,60396.0,60395.0,0.1647988]
[1720029166920,1.33859189,60396.0,60395.0,0.1647988]
[1720029167142,1.66973889,60396.0,60395.0,0.1647988]
[1720029168111,1.66743289,60396.0,60395.0,0.1647988]
[1720029175203,1.66973889,60396.0,60395.0,0.1647988]
[1720029177002,1.66743289,60396.0,60395.0,0.1647988]
[1720029177695,1.24868589,60396.0,60395.0,0.1647988]
[1720029177932,1.32468589,60396.0,60395.0,0.1647988]
[1720029178819,1.32468589,60396.0,60395.0,0.21588446]
[1720029179054,1.32468589,60396.0,60395.0,0.21596446]
[1720029179284,1.32468589,60396.0,60395.0,0.1648788]
[1720029179520,1.32468589,60396.0,60395.0,0.21596446]
[1720029180470,1.24848589,60396.0,60395.0,0.34856446]
[1720029180694,1.24848589,60396.0,60395.0,0.43656446]
[1720029180899,0.91733889,60396.0,60395.0,0.43656446]
[1720029181576,0.1001,60396.0,60395.0,0.46656446]
[1720029181784,0.165673,60396.0,60395.0,0.45456446]
[1720029181985,0.0001,60396.0,60395.0,0.75436446]
[1720029182198,0.0001,60396.0,60395.0,1.25109346]
[1720029182371,0.0001,60396.0,60395.0,1.58224646]
[1720029182717,0.0001,60396.0,60395.0,1.89604646]
[1720029183143,0.0001,60396.0,60395.0,1.91610646]
[1720029183364,0.00101301,60396.0,60395.0,1.91610646]
[1720029183546,0.00101301,60396.0,60395.0,1.61630646]
[1720029183966,0.00101301,60396.0,60395.0,1.28515346]
[1720029184393,0.00101301,60396.0,60395.0,1.28115346]
[1720029184765,0.00101301,60396.0,60395.0,1.29515346]
[1720029185165,0.00101301,60396.0,60395.0,1.28115346]
[1720029185368,0.00101301,60396.0,60395.0,1.30315346]
[1720029186870,0.00101301,60396.0,60395.0,2.13400646]
[1720029187074,0.00101301,60396.0,60395.0,2.1836912]
[1720029187274,0.009185,60400.0,60399.0,1.57798166]
[1720029187640,0.009185,60400.0,60399.0,2.09241146]
[1720029188621,0.009185,60400.0,60399.0,2.14203107]
[1720029189366,0.0139113,60402.0,60401.0,1.40830566]
[1720029189592,0.0139113,60402.0,60401.0,1.75716446]
[1720029189767,0.009196,60407.0,60405.0,1.37723266]
[1720029189977,0.009196,60407.0,60405.0,2.21232684]
[1720029190175,0.009196,60407.0,60405.0,2.54342605]
[1720029190357,0.009196,60407.0,60405.0,2.16925746]
[1720029190712,0.009196,60407.0,60405.0,2.46905746]
[1720029192062,0.009196,60407.0,60405.0,2.46895746]
[1720029192505,0.009196,60407.0,60405.0,1.50696146]
[1720029193092,0.009196,60407.0,60405.0,1.52096146]
[1720029193287,0.009196,60407.0,60405.0,1.85205946]
[1720029193515,0.009196,60407.0,60405.0,1.52096146]
[1720029193712,0.009196,60407.0,60405.0,1.50696146]
[1720029193891,0.009196,60407.0,60405.0,1.52096146]
[1720029194271,0.009196,60407.0,60405.0,1.50696146]
[1720029195373,0.009196,60407.0,60405.0,0.97708446]
[1720029195535,0.17474,60407.0,60405.0,0.97708446]
[1720029195770,0.009196,60407.0,60405.0,0.99098446]
[1720029196114,0.17474,60407.0,60405.0,0.99098446]
[1720029196311,0.82949586,60406.0,60405.0,0.1767988]
[1720029196511,0.82949586,60406.0,60405.0,0.22778446]
[1720029196718,0.82949586,60406.0,60405.0,0.24178446]
[1720029196719,1.16078786,60406.0,60405.0,0.24178446]
[1720029196914,1.16078786,60406.0,60405.0,0.25578446]
[1720029197114,1.16078786,60406.0,60405.0,0.22778446]
[1720029197576,1.52167986,60406.0,60405.0,0.1907988]
[1720029197783,1.52167986,60406.0,60405.0,0.2047988]
[1720029198130,1.52167986,60406.0,60405.0,0.1907988]
[1720029198382,1.52167986,60406.0,60405.0,0.2047988]
[1720029198791,1.52167986,60406.0,60405.0,0.1907988]
[1720029198964,1.62167986,60406.0,60405.0,0.1907988]
[1720029199169,1.62167986,60406.0,60405.0,0.1767988]
[1720029199624,1.62167986,60406.0,60405.0,0.1997988]
[1720029199868,1.62408586,60406.0,60405.0,0.2097988]
[1720029200039,2.17377786,60406.0,60405.0,0.1701988]
[1720029200251,2.17377786,60406.0,60405.0,0.1721988]
[1720029200943,2.18404908,60406.0,60405.0,0.1761988]
[1720029201615,2.18404908,60406.0,60405.0,0.1641988]
[1720029201836,1.99414908,60406.0,60405.0,0.1641988]
[1720029202049,2.18404908,60406.0,60405.0,0.15429719]
[1720029202278,2.18404908,60406.0,60405.0,0.15268718]
[1720029202859,2.18404908,60406.0,60405.0,0.15258718]
[1720029203261,2.2046364,60406.0,60405.0,0.15258718]
[1720029203466,2.2046364,60406.0,60405.0,0.14858718]
[1720029203707,2.19436518,60406.0,60405.0,0.14858718]
[1720029203866,2.20463643,60406.0,60405.0,0.14958718]
[1720029206047,1.63195111,60406.0,60405.0,0.14958718]
[1720029206235,1.27085911,60406.0,60405.0,0.20057284]
[1720029206392,1.27085911,60406.0,60405.0,0.32097284]
[1720029206906,0.50867511,60406.0,60405.0,0.22357284]
[1720029207122,0.49840386,60406.0,60405.0,0.43177284]
[1720029207498,0.49840386,60406.0,60405.0,0.43087284]
[1720029207499,0.82969586,60406.0,60405.0,0.43087284]
[1720029207797,1.16058786,60406.0,60405.0,0.22277284]
[1720029208204,1.26058786,60406.0,60405.0,0.22977284]
[1720029208591,1.26058786,60406.0,60405.0,0.22277284]
[1720029209217,1.26058786,60406.0,60405.0,0.24677284]
[1720029209604,0.59840386,60406.0,60405.0,0.24677284]
[1720029209808,0.59840386,60406.0,60405.0,0.23277284]
[1720029210145,0.92949586,60406.0,60405.0,0.24677284]
[1720029210724,0.92949586,60406.0,60405.0,0.23677284]
[1720029210908,0.92949586,60406.0,60405.0,0.22277284]
[1720029211104,0.92949586,60406.0,60405.0,0.23577284]
[1720029211317,0.92949586,60406.0,60405.0,0.24977284]
[1720029211524,1.26078786,60406.0,60405.0,0.24977284]
[1720029211721,1.26058786,60406.0,60405.0,0.23677284]
[1720029212149,1.26058786,60406.0,60405.0,0.25077284]
[1720029212524,1.26078786,60406.0,60405.0,0.25077284]
[1720029212985,1.26078786,60406.0,60405.0,0.19978718]
[1720029213171,1.59187986,60406.0,60405.0,0.19978718]
[1720029213946,1.78177986,60406.0,60405.0,0.18578718]
[1720029214336,1.78177986,60406.0,60405.0,0.19978718]
[1720029214562,1.78177986,60406.0,60405.0,0.17678718]
[1720029215639,1.78177986,60406.0,60405.0,0.16278718]
[1720029216095,1.78177986,60406.0,60405.0,0.16478718]
[1720029216950,1.59187986,60406.0,60405.0,0.15078718]
[1720029217377,1.59187986,60406.0,60405.0,0.16078718]
[1720029217686,1.59187986,60406.0,60405.0,0.15078718]
[1720029218635,1.26078786,60406.0,60405.0,0.17378718]
[1720029218859,0.92949586,60406.0,60405.0,0.22477284]
[1720029219092,0.92949586,60406.0,60405.0,0.42637284]
[1720029220053,0.92949586,60406.0,60405.0,0.42437284]
[1720029220705,0.92949586,60406.0,60405.0,0.41437284]
[1720029221122,0.92969586,60406.0,60405.0,0.42837284]
[1720029221360,0.92969586,60406.0,60405.0,0.37738718]
[1720029221561,0.92969586,60406.0,60405.0,0.36338718]
[1720029221562,1.26078786,60406.0,60405.0,0.36338718]
[1720029221765,1.26078786,60406.0,60405.0,0.16178718]
[1720029222048,1.26078786,60406.0,60385.0,0.04951297]
[1720029222049,1.159389,60387.0,60385.0,0.04951297]
[1720029222273,1.159389,60387.0,60386.0,0.03714622]
[1720029222274,0.165798,60387.0,60386.0,0.03714622]
[1720029222474,0.786695,60387.0,60386.0,0.03714622]
[1720029222678,1.117892,60387.0,60386.0,0.08813188]
[1720029222930,0.1899,60398.0,60392.0,0.05098566]
[1720029223125,0.496747,60393.0,60392.0,0.05098566]
[1720029223322,0.927912,60393.0,60392.0,0.05098566]
[1720029223532,0.927912,60393.0,60392.0,0.21128446]
[1720029223729,1.259077,60393.0,60392.0,0.23428446]
[1720029224451,0.927912,60393.0,60392.0,0.23428446]
[1720029224652,0.927912,60393.0,60392.0,0.32508446]
[1720029226056,0.497747,60393.0,60392.0,0.33908446]
[1720029226613,0.001,60393.0,60392.0,0.78618446]
[1720029227015,0.001,60393.0,60392.0,0.78518446]
[1720029227350,0.002,60393.0,60392.0,0.79418446]
[1720029227547,0.002,60393.0,60392.0,0.95976846]
[1720029227939,0.002,60393.0,60392.0,0.76418446]
[1720029228133,0.001,60393.0,60392.0,0.75518446]
[1720029228334,0.001,60393.0,60392.0,0.78518446]
[1720029228851,0.165576,60395.0,60394.0,0.2997]
[1720029229218,0.165576,60395.0,60394.0,0.53398446]
[1720029229830,0.165476,60395.0,60394.0,0.53398446]
[1720029230035,0.165476,60395.0,60394.0,0.56398446]
[1720029230208,0.165376,60395.0,60394.0,0.56398446]
[1720029230612,0.165376,60395.0,60394.0,0.57798446]
[1720029231053,0.496716,60397.0,60396.0,0.38068566]
[1720029231221,0.165571,60397.0,60396.0,0.56398446]
[1720029231573,0.496701,60399.0,60398.0,0.35068566]
[1720029231769,0.496701,60399.0,60398.0,0.53398446]
[1720029232890,0.827835,60399.0,60398.0,0.53398446]
[1720029233648,0.827735,60399.0,60398.0,0.53398446]
[1720029234053,0.827635,60399.0,60398.0,0.53398446]
[1720029234651,0.827535,60399.0,60398.0,0.53398446]
[1720029234849,0.827535,60399.0,60398.0,0.54598446]
[1720029235084,0.827635,60399.0,60398.0,0.55998446]
[1720029235889,1.158969,60399.0,60398.0,0.26028446]
[1720029236141,1.177475,60399.0,60398.0,0.1862988]
[1720029236310,1.798509,60399.0,60398.0,0.1862988]
[1720029236535,1.83021539,60399.0,60398.0,0.026]
[1720029236690,2.16134939,60399.0,60398.0,0.026]
[1720029238508,2.16134939,60399.0,60398.0,0.0261]
[1720029238717,2.16134939,60399.0,60398.0,0.0141]
[1720029239114,2.16534939,60399.0,60398.0,0.0151]
[1720029239382,1.159168,60388.0,60387.0,0.456224]
[1720029239583,1.449268,60388.0,60387.0,0.6395228]
[1720029239782,1.780459,60388.0,60387.0,0.6395228]
[1720029240639,1.590559,60388.0,60387.0,0.6395228]
[1720029240790,1.780459,60388.0,60387.0,0.6395228]
[1720029240951,1.780759,60388.0,60387.0,0.6165228]
[1720029241166,1.780759,60388.0,60387.0,0.1602988]
[1720029243500,1.780559,60388.0,60387.0,0.1602988]
[1720029243702,1.783165,60388.0,60387.0,0.1602988]
[1720029244240,1.785165,60388.0,60387.0,0.1602988]
[1720029245238,1.782759,60388.0,60387.0,0.1602988]
[1720029247862,1.785165,60388.0,60387.0,0.1602988]
[1720029248063,1.785065,60388.0,60387.0,0.1602988]
[1720029248445,1.805265,60388.0,60387.0,0.1602988]
[1720029249115,2.136456,60388.0,60387.0,0.1602988]
[1720029249442,2.136456,60388.0,60387.0,0.1622988]
[1720029249850,2.136456,60388.0,60387.0,0.1602988]
[1720029250083,2.136456,60388.0,60387.0,0.1622988]
[1720029250918,2.785465,60388.0,60387.0,0.002]
[1720029251133,1.159676,60372.0,60371.0,0.0165]
[1720029251333,1.349876,60372.0,60371.0,0.1767988]
[1720029251534,1.781155,60372.0,60371.0,0.1767988]
[1720029251951,1.781055,60372.0,60371.0,0.1767988]
[1720029252520,1.780955,60372.0,60371.0,0.1767988]
[1720029253504,1.781955,60372.0,60371.0,0.1867988]
[1720029253915,1.780955,60372.0,60371.0,0.1767988]
[1720029254416,1.260476,60372.0,60371.0,0.25678446]
[1720029254584,1.260476,60372.0,60371.0,0.45698446]
[1720029255311,1.260476,60372.0,60371.0,0.45898446]
[1720029255527,1.260476,60372.0,60371.0,0.2077988]
[1720029255528,1.591755,60372.0,60371.0,0.2077988]
[1720029255727,1.591755,60372.0,60371.0,0.1847988]
[1720029255728,1.781855,60372.0,60371.0,0.1847988]
[1720029256269,1.781755,60372.0,60371.0,0.1847988]
[1720029257463,1.804861,60372.0,60371.0,0.1847988]
[1720029258056,1.802455,60372.0,60371.0,0.1847988]
[1720029258213,1.804861,60372.0,60371.0,0.1847988]
[1720029259500,1.802455,60372.0,60371.0,0.1847988]
[1720029259887,1.804861,60372.0,60371.0,0.1682988]
[1720029260032,2.13604,60372.0,60371.0,0.1682988]
[1720029260442,2.133534,60372.0,60371.0,0.1682988]
[1720029260639,2.13594,60372.0,60371.0,0.1682988]
[1720029262018,1.591655,60372.0,60371.0,0.1682988]
[1720029262223,1.781555,60372.0,60371.0,0.1682988]
[1720029266742,1.781555,60372.0,60371.0,0.1683988]
[1720029267711,1.781655,60372.0,60371.0,0.1683988]
[1720029271352,1.781355,60372.0,60371.0,0.1683988]
[1720029271552,0.928897,60372.0,60371.0,0.44718446]
[1720029271906,0.166739,60372.0,60371.0,0.44718446]
[1720029272110,0.496893,60375.0,60374.0,0.05098566]
[1720029272347,0.828155,60375.0,60374.0,0.23428446]
[1720029273041,0.0405,60387.0,60374.0,0.23428446]
[1720029273042,0.496828,60383.0,60382.0,0.25578566]
[1720029273259,0.828047,60383.0,60382.0,0.43908446]
[1720029274475,0.928047,60383.0,60382.0,0.43908446]
[1720029274702,0.596828,60383.0,60382.0,0.44708446]
[1720029274919,0.597828,60383.0,60382.0,0.44708446]
[1720029275144,0.597728,60383.0,60382.0,0.44708446]
[1720029275577,0.265609,60383.0,60382.0,0.43364002]
[1720029275731,0.596828,60383.0,60382.0,0.43364002]
[1720029276568,0.596828,60383.0,60382.0,0.44764002]
[1720029276747,0.265609,60383.0,60382.0,0.44764002]
[1720029277130,0.265609,60383.0,60382.0,0.43364002]
[1720029277346,0.265609,60383.0,60382.0,0.44764002]
[1720029277564,0.265609,60383.0,60382.0,0.45664002]
[1720029278091,0.596828,60383.0,60382.0,0.44764002]
[1720029278328,0.596828,60383.0,60382.0,0.45964002]
[1720029278985,0.1,60383.0,60382.0,0.45964002]
[1720029279210,0.1,60384.0,60383.0,0.04554122]
[1720029279415,0.1,60384.0,60383.0,0.22884002]
[1720029279766,0.265606,60384.0,60383.0,0.22884002]
[1720029280643,0.1,60384.0,60383.0,0.22884002]
[1720029280853,0.596819,60384.0,60383.0,0.22884002]
[1720029281053,0.597819,60384.0,60383.0,0.24284002]
[1720029281267,0.266606,60384.0,60383.0,0.24284002]
[1720029281445,0.101,60384.0,60383.0,0.28384002]
[1720029281641,0.101,60384.0,60383.0,0.64764902]
[1720029281867,0.001,60384.0,60383.0,1.60978702]
[1720029282063,0.101,60384.0,60383.0,1.60978702]
[1720029282265,0.101,60384.0,60383.0,1.27856802]
[1720029282711,0.101,60384.0,60383.0,1.27846802]
[1720029283159,0.001,60384.0,60383.0,1.27836802]
[1720029283372,0.001,60384.0,60383.0,1.24836802]
[1720029283545,0.001,60384.0,60383.0,1.27836802]
[1720029285310,0.001,60384.0,60383.0,1.24836802]
[1720029285430,0.001,60384.0,60383.0,0.94714902]
[1720029287059,0.001,60384.0,60383.0,0.91714902]
[1720029287661,0.001,60384.0,60383.0,0.94714902]
[1720029288028,0.001,60384.0,60383.0,1.27836802]
[1720029289080,0.001,60384.0,60383.0,0.94714902]
[1720029289283,0.001,60384.0,60383.0,0.91714902]
[1720029289742,0.001,60384.0,60383.0,1.01348302]
[1720029289876,0.001,60384.0,60383.0,0.98348302]
[1720029290075,0.001,60384.0,60383.0,0.98338302]
[1720029290496,0.001,60384.0,60383.0,0.98328302]
[1720029292863,0.001,60384.0,60383.0,1.01328302]
[1720029294456,0.001,60384.0,60383.0,0.98328302]
[1720029294686,0.001,60384.0,60383.0,0.81767402]
[1720029294907,0.001,60384.0,60383.0,0.75134002]
[1720029296809,0.829032,60384.0,60383.0,0.45164002]
[1720029297051,0.829132,60384.0,60383.0,0.45164002]
[1720029299111,0.829132,60384.0,60383.0,0.45164002]
[1720029299339,0.662526,60384.0,60383.0,0.45164002]
[1720029299559,0.828132,60384.0,60383.0,0.45164002]
[1720029300955,0.496919,60384.0,60383.0,0.48164002]
[1720029301246,0.165706,60384.0,60383.0,0.48164002]
[1720029301479,0.0001,60384.0,60383.0,0.78134002]
[1720029301715,0.331137,60398.0,60397.0,0.04514122]
[1720029301959,0.331137,60398.0,60397.0,0.20544002]
[1720029301960,0.827842,60398.0,60397.0,0.20544002]
[1720029302217,0.827842,60398.0,60397.0,0.22844002]
[1720029303440,0.927842,60398.0,60397.0,0.22844002]
[1720029304748,1.258979,60398.0,60397.0,0.1832988]
[1720029304962,1.258979,60398.0,60397.0,0.1882988]
[1720029305820,1.258979,60398.0,60397.0,0.1892988]
[1720029306198,1.258979,60398.0,60397.0,0.23444002]
[1720029306560,1.258979,60398.0,60397.0,0.23434002]
[1720029306816,1.258979,60398.0,60397.0,0.1891988]
[1720029308206,1.258979,60398.0,60397.0,0.23434002]
[1720029310027,1.258979,60398.0,60397.0,0.23444002]
[1720029311335,1.258979,60398.0,60397.0,0.23454002]
[1720029312428,1.259079,60398.0,60397.0,0.23454002]
[1720029312838,1.259079,60398.0,60397.0,0.1893988]
[1720029313043,1.259079,60398.0,60397.0,0.1663988]
[1720029313454,1.259079,60398.0,60397.0,0.1672288]
[1720029315000,1.610716,60398.0,60397.0,0.1672288]
[1720029316165,1.800616,60398.0,60397.0,0.1672288]
[1720029316337,1.800616,60398.0,60397.0,0.1622288]
[1720029316956,1.800616,60398.0,60397.0,0.1612288]
[1720029317193,1.800616,60398.0,60397.0,0.1632288]
[1720029318253,1.259079,60398.0,60397.0,0.20837002]
[1720029318456,1.259079,60398.0,60397.0,0.23137002]
[1720029318658,1.259079,60398.0,60397.0,0.42457002]
[1720029321101,1.259079,60398.0,60397.0,0.42257002]
[1720029321291,1.259079,60398.0,60397.0,0.43657002]
[1720029322991,0.596805,60398.0,60397.0,0.43657002]
[1720029323197,0.597805,60398.0,60397.0,0.24337002]
[1720029323398,0.928941,60398.0,60397.0,0.24337002]
[1720029323835,0.927941,60398.0,60397.0,0.24337002]
[1720029324233,0.927941,60398.0,60397.0,0.25537002]
[1720029325786,0.927941,60398.0,60397.0,0.45007002]
[1720029326370,1.259077,60398.0,60397.0,0.45007002]
[1720029326741,0.92794,60398.0,60397.0,0.45007002]
[1720029328202,0.596804,60398.0,60397.0,0.48007002]
[1720029328444,0.596804,60398.0,60397.0,0.45007002]
[1720029331925,0.596804,60398.0,60397.0,0.48007002]
[1720029332104,0.1001,60398.0,60397.0,0.48007002]
[1720029333189,0.0001,60398.0,60397.0,0.48007002]
[1720029333865,0.165668,60398.0,60397.0,0.45007002]
[1720029334367,0.165668,60398.0,60397.0,0.48007002]
[1720029334605,0.165668,60398.0,60397.0,0.45007002]
[1720029336492,0.165668,60398.0,60397.0,0.48007002]
[1720029337793,0.165668,60398.0,60397.0,0.45007002]
[1720029337997,0.165668,60398.0,60397.0,0.48007002]
[1720029339368,0.165668,60398.0,60397.0,0.45007002]
[1720029339759,0.496804,60398.0,60397.0,0.45007002]
[1720029341662,0.496804,60398.0,60397.0,0.48007002]
[1720029341867,0.496804,60398.0,60397.0,0.45007002]
[1720029342070,1.348976,60398.0,60397.0,0.1872288]
[1720029342273,1.388776,60398.0,60397.0,0.1872288]
[1720029342662,1.388776,60398.0,60397.0,0.1752288]
[1720029343050,2.154154,60398.0,60397.0,0.01303]
[1720029343492,0.828075,60381.0,60380.0,0.7769]
[1720029343699,0.828075,60381.0,60380.0,0.1602988]
[1720029343901,0.928075,60381.0,60380.0,0.1602988]
[1720029344106,1.26957546,60381.0,60380.0,0.1602988]
[1720029346006,1.27757546,60381.0,60380.0,0.1612988]
[1720029346464,1.267305,60381.0,60380.0,0.1612988]
[1720029346664,1.2775755,60381.0,60380.0,0.1842988]
[1720029346887,1.2774755,60381.0,60380.0,0.1842988]
[1720029347095,1.2694755,60381.0,60380.0,0.1932988]
[1720029347320,1.2694755,60381.0,60380.0,0.23844002]
[1720029347518,1.2694755,60381.0,60380.0,0.24344002]
[1720029347678,0.9382455,60381.0,60380.0,0.44554002]
[1720029347894,0.596745,60381.0,60380.0,0.44554002]
[1720029348263,0.927975,60381.0,60380.0,0.44554002]
[1720029349760,0.596745,60381.0,60380.0,0.44554002]
[1720029349964,0.927975,60381.0,60380.0,0.44554002]
[1720029350192,0.927875,60381.0,60380.0,0.44554002]
[1720029350811,0.596645,60381.0,60380.0,0.44554002]
[1720029351020,0.927875,60381.0,60380.0,0.44554002]
[1720029351229,0.927775,60381.0,60380.0,0.44554002]
[1720029351634,0.927675,60381.0,60380.0,0.44554002]
[1720029353494,1.258905,60381.0,60380.0,0.24344002]
[1720029354135,1.258905,60381.0,60380.0,0.1982988]
[1720029354546,1.2691805,60381.0,60380.0,0.24344002]
[1720029354950,1.2691805,60381.0,60380.0,0.1982988]
[1720029355391,1.2691805,60381.0,60380.0,0.24344002]
[1720029355598,1.2691805,60381.0,60380.0,0.1982988]
[1720029355955,1.26918042,60381.0,60380.0,0.24344002]
[1720029356803,1.26918042,60381.0,60380.0,0.1982988]
[1720029357548,1.60041042,60381.0,60380.0,0.1982988]
[1720029358323,1.590135,60381.0,60380.0,0.1982988]
[1720029358951,1.60041071,60381.0,60380.0,0.1982988]
[1720029359158,1.590135,60381.0,60380.0,0.1982988]
[1720029359354,1.26918102,60381.0,60380.0,0.1982988]
[1720029359731,1.60041102,60381.0,60380.0,0.1982988]
[1720029360231,1.26918102,60381.0,60380.0,0.1982988]
[1720029360816,1.26918102,60381.0,60380.0,0.1752988]
[1720029360817,1.60071102,60381.0,60380.0,0.1752988]
[1720029361020,1.60081102,60381.0,60380.0,0.1752988]
[1720029361678,1.60081327,60381.0,60380.0,0.1753988]
[1720029362259,1.60071327,60381.0,60380.0,0.1753988]
[1720029364998,1.26918174,60381.0,60380.0,0.1753988]
[1720029365612,1.26948174,60381.0,60380.0,0.1754988]
[1720029366131,1.60071174,60381.0,60380.0,0.1754988]
[1720029368068,1.62091174,60381.0,60380.0,0.1754988]
[1720029368272,1.610635,60381.0,60380.0,0.1754988]
[1720029368470,1.62090796,60381.0,60380.0,0.1754988]
[1720029368814,1.610635,60381.0,60380.0,0.1754988]
[1720029369081,1.62090624,60381.0,60380.0,0.1754988]
[1720029369441,1.62371224,60381.0,60380.0,0.1754988]
[1720029370401,1.62090624,60381.0,60380.0,0.1754988]
[1720029371510,1.62090546,60381.0,60380.0,0.1754988]
[1720029371674,1.610635,60381.0,60380.0,0.1754988]
[1720029371884,1.62090546,60381.0,60380.0,0.1754988]
[1720029373153,1.60070546,60381.0,60380.0,0.1754988]
[1720029373982,1.26917546,60381.0,60380.0,0.42354002]
[1720029374348,1.26917546,60381.0,60380.0,0.44654002]
[1720029374956,1.26917621,60381.0,60380.0,0.44654002]
[1720029377766,1.26829716,60381.0,60380.0,0.44654002]
[1720029378368,1.26829714,60381.0,60380.0,0.44654002]
[1720029378543,1.10406119,60381.0,60380.0,0.44654002]
[1720029379439,1.26967619,60381.0,60380.0,0.44737002]
[1720029379851,0.9393592,60381.0,60380.0,0.44737002]
[1720029380032,0.9393592,60381.0,60380.0,0.47737002]
[1720029380033,0.6081292,60381.0,60380.0,0.47737002]
[1720029380491,0.6081292,60381.0,60380.0,0.44737002]
[1720029380492,0.9393592,60381.0,60380.0,0.44737002]
[1720029382085,0.9393599,60381.0,60380.0,0.44737002]
[1720029382290,0.6081299,60381.0,60380.0,0.47737002]
[1720029383640,0.1112849,60381.0,60380.0,0.77707002]
[1720029383818,0.0112849,60381.0,60380.0,0.77707002]
[1720029384832,0.01128499,60381.0,60380.0,0.77707002]
[1720029385454,0.11128499,60381.0,60380.0,0.77707002]
[1720029385874,0.27689999,60381.0,60380.0,0.77707002]
[1720029387101,0.27689999,60381.0,60380.0,0.74707002]
[1720029387300,0.60812999,60381.0,60380.0,0.74707002]
[1720029389402,0.60812999,60381.0,60380.0,0.77707002]
[1720029389959,0.60812999,60381.0,60380.0,0.74707002]
[1720029390160,0.60812999,60381.0,60380.0,0.44737002]
[1720029391084,0.60812999,60381.0,60380.0,0.77707002]
[1720029391423,0.61148322,60381.0,60380.0,0.77707002]
[1720029391857,0.01463822,60381.0,60380.0,0.77707002]
[1720029392210,0.00101301,60381.0,60380.0,1.36831265]
[1720029392554,0.00101301,60381.0,60380.0,1.69954765]
[1720029393217,0.00101301,60381.0,60380.0,1.69454765]
[1720029393577,0.00201301,60381.0,60380.0,1.70854765]
[1720029393801,0.00201301,60381.0,60380.0,1.62254765]
[1720029395122,0.00201301,60381.0,60380.0,1.57292202]
[1720029395318,0.00201301,60381.0,60380.0,1.62261013]
[1720029395514,0.00201301,60381.0,60380.0,1.57292202]
[1720029395673,0.00201301,60381.0,60380.0,1.63661013]
[1720029396144,0.00091301,60398.0,60397.0,0.04514122]
[1720029396269,0.16648101,60398.0,60397.0,0.25844002]
[1720029396482,0.16648101,60398.0,60397.0,0.45464002]
[1720029396687,0.00091301,60398.0,60397.0,0.75434002]
[1720029397175,0.00091301,60398.0,60397.0,1.58219502]
[1720029397491,0.00091301,60398.0,60397.0,1.25105302]
[1720029397747,0.00291301,60398.0,60397.0,1.25105302]
[1720029398118,1.00291301,60398.0,60397.0,1.25105302]
[1720029399273,1.00291301,60398.0,60397.0,1.58219502]
[1720029399873,0.00291301,60398.0,60397.0,1.59619502]
[1720029400073,0.00291301,60398.0,60397.0,1.26505302]
[1720029400273,0.00091301,60398.0,60397.0,1.26505302]
[1720029400698,0.00091301,60398.0,60397.0,1.27905302]
[1720029402068,0.00091301,60398.0,60397.0,0.94791102]
[1720029402468,0.00091301,60398.0,60397.0,0.94781102]
[1720029403518,0.00091301,60398.0,60397.0,1.27895302]
[1720029404860,0.00091301,60398.0,60397.0,1.57895302]
[1720029405068,0.00091301,60398.0,60397.0,2.0661958]
[1720029405271,0.00091301,60398.0,60397.0,2.44113702]
[1720029405567,0.00091301,60398.0,60397.0,2.0661958]
[1720029405773,0.00091301,60398.0,60397.0,2.44103702]
[1720029405979,0.00091301,60398.0,60397.0,2.14103702]
[1720029406188,0.00091301,60398.0,60397.0,2.44093702]
[1720029407064,0.00091301,60398.0,60397.0,2.14093702]
[1720029407286,0.00091301,60398.0,60397.0,2.44093702]
[1720029407565,0.00091301,60398.0,60397.0,2.14093702]
[1720029407929,0.00091301,60398.0,60397.0,2.44093702]
[1720029408327,0.00091301,60398.0,60397.0,2.14093702]
[1720029408727,0.00091301,60398.0,60397.0,2.44093702]
[1720029411359,0.00091301,60398.0,60397.0,1.80979502]
[1720029411582,0.00091301,60398.0,60397.0,0.98194002]
[1720029411960,0.00091301,60398.0,60397.0,1.14751102]
[1720029412617,0.00091301,60398.0,60397.0,1.14741102]
[1720029413837,0.00091301,60398.0,60397.0,1.77855302]
[1720029414192,0.00091301,60398.0,60397.0,2.14292502]
[1720029414452,0.00091301,60398.0,60397.0,2.47406702]
[1720029415330,0.00091301,60398.0,60397.0,2.46006702]
[1720029415489,0.00091301,60398.0,60397.0,2.47406702]
[1720029415693,0.00091301,60398.0,60397.0,2.45996702]
[1720029415891,0.00091301,60398.0,60397.0,2.47396702]
[1720029419194,0.00091301,60398.0,60397.0,2.47406702]
[1720029420295,0.00091301,60398.0,60397.0,2.47416702]
[1720029420798,0.00101301,60398.0,60397.0,2.47416702]
[1720029422398,0.00101301,60398.0,60397.0,2.52360551]
[1720029422597,0.00101301,60398.0,60397.0,2.94291919]